bitfinex/quotes_SOLUSD_20250306
["timestamp","ask_amount","ask_price","bid_price","bid_amount"]
[1741235935210,4.62597934,149.31,149.3,161.86998609]
[1741235935793,25.6043799,149.31,149.3,473.86998609]
[1741235936808,30.2925799,149.31,149.3,473.86998609]
[1741235937113,4.6882,149.31,149.3,473.86998609]
[1741235937915,23.622172,149.31,149.3,161.86998609]
[1741235938113,23.622172,149.31,149.3,158.27618609]
[1741235939017,24.746172,149.31,149.24,23.64778033]
[1741235939209,2.14216157,149.15,149.14,389.11102012]
[1741235939406,7.04648471,149.15,149.14,223.85468032]
[1741235939603,7.04648471,149.15,149.14,178.32656857]
[1741235939922,0.42648471,149.14,149.06,203.91784595]
[1741235940132,32.37778124,149.15,149.07,16.89878033]
[1741235940432,32.37778124,149.15,149.09,16.89878033]
[1741235940615,32.37778124,149.15,149.1,0.14216157]
[1741235941135,0.28432314,149.17,149.14,312.0]
[1741235941628,0.28432314,149.18,149.09,0.14216157]
[1741235941796,4.99437401,149.16,149.09,0.14216157]
[1741235941997,18.933972,149.15,149.09,0.14216157]
[1741235942215,4.99437401,149.16,149.08,0.17516157]
[1741235942216,37.32153461,149.16,149.08,0.17516157]
[1741235942423,37.32153461,149.16,149.13,0.033]
[1741235942607,4.99437401,149.15,149.13,0.033]
[1741235943415,4.99437401,149.15,149.13,27.1251456]
[1741235943616,51.23703682,149.15,149.13,0.17516157]
[1741235943822,51.23703682,149.15,149.13,27.26730717]
[1741235944026,46.24266281,149.15,149.14,27.0921456]
[1741235944438,46.24266281,149.15,149.14,339.0921456]
[1741235944736,46.24266281,149.15,149.14,27.23430717]
[1741235945317,69.68598515,149.15,149.14,27.23430717]
[1741235945836,69.68598515,149.15,149.14,339.23430717]
[1741235946141,69.68598515,149.15,149.14,27.23430717]
[1741235946301,64.71532601,149.15,149.14,27.23430717]
[1741235947159,64.71532601,149.15,149.14,339.23430717]
[1741235947403,64.71532601,149.15,149.14,27.23430717]
[1741235948334,64.71532601,149.15,149.14,339.23430717]
[1741235949821,32.65467688,149.28,149.14,339.23430717]
[1741235949822,80.8,149.27,149.16,18.64964886]
[1741235950120,80.8,149.27,149.23,0.14216157]
[1741235950436,80.8,149.27,149.22,0.14216157]
[1741235951625,4.96079715,149.26,149.21,27.23430717]
[1741235952419,6.72128471,149.23,149.13,0.033]
[1741235952620,6.72128471,149.23,149.06,203.91784595]
[1741235952621,0.42648471,149.12,149.06,203.91784595]
[1741235952999,2.0,149.09,149.06,203.91784595]
[1741235953200,18.933972,149.07,149.06,203.91784595]
[1741235953405,20.933972,149.07,149.06,203.91784595]
[1741235953610,22.958872,149.07,149.06,203.95084595]
[1741235954029,25.10103357,149.07,149.06,200.93714595]
[1741235954403,30.0638497,149.07,149.06,35.74101614]
[1741235954604,30.0638497,149.07,149.06,32.72731614]
[1741235954902,31.70960177,149.07,149.06,32.72731614]
[1741235955314,24.0389497,149.07,149.06,32.72731614]
[1741235957304,57.74231668,149.07,149.06,32.72731614]
[1741235957907,103.85994855,149.07,149.06,32.72731614]
[1741235958106,70.15658157,149.07,149.06,32.72731614]
[1741235960818,103.85994855,149.07,149.06,32.72731614]
[1741235962030,103.85994855,149.07,149.06,1.123e-05]
[1741235963107,98.89713242,149.07,149.06,1.123e-05]
[1741235963311,102.92203242,149.07,149.06,1.123e-05]
[1741235963513,18.64964886,149.05,149.02,80.93499305]
[1741235963735,0.42648471,149.04,149.02,80.93499305]
[1741235965230,4.026,149.03,149.02,80.93499305]
[1741235965638,35.90714004,149.03,149.02,80.93499305]
[1741235967537,31.88114004,149.03,149.02,80.93499305]
[1741235968317,36.19146318,149.03,149.02,80.93499305]
[1741235968521,54.84111204,149.03,149.02,80.93499305]
[1741235969126,50.81511204,149.03,149.02,80.93499305]
[1741235969927,115.57494364,149.03,149.02,80.93499305]
[1741235970731,119.60094364,149.03,149.02,80.93499305]
[1741235976854,119.60094364,149.03,148.98,27.0921456]
[1741235977054,0.14216157,148.9,148.85,203.95084595]
[1741235977226,0.42648471,148.89,148.85,86.91250342]
[1741235977421,0.42648471,148.89,148.78,0.033]
[1741235977629,0.42648471,148.89,148.78,0.14216157]
[1741235978153,0.42648471,148.89,148.77,27.0921456]
[1741235978353,5.9743917,148.89,148.79,27.0921456]
[1741235978539,5.9743917,148.89,148.8,0.14216157]
[1741235978738,0.28432314,148.87,148.8,0.14216157]
[1741235978945,0.28432314,148.87,148.79,27.0921456]
[1741235979155,4.31492314,148.87,148.86,312.0]
[1741235980557,9.24547341,148.87,148.86,312.0]
[1741235981137,27.43136435,148.87,148.86,312.0]
[1741235981546,27.43136435,148.87,148.8,27.23430717]
[1741235981547,0.28432314,148.85,148.8,27.23430717]
[1741235981927,3.64342314,148.85,148.8,0.14216157]
[1741235982548,3.64342314,148.85,148.84,312.0]
[1741235983970,8.57679472,148.85,148.84,312.0]
[1741235984254,40.45793476,148.85,148.84,312.0]
[1741235984761,40.45793476,148.85,148.8,0.14216157]
[1741235985052,35.52456318,148.85,148.8,0.14216157]
[1741235985752,35.38240161,148.85,148.84,312.0]
[1741235985970,31.88114004,148.85,148.84,312.14216157]
[1741235986342,31.88114004,148.85,148.84,312.0]
[1741235986343,35.52446318,148.85,148.84,312.0]
[1741235988156,53.71035412,148.85,148.84,312.0]
[1741235988769,50.06703098,148.85,148.84,312.14216157]
[1741235990040,96.32682442,148.85,148.84,312.14216157]
[1741235990463,96.32682442,148.85,148.84,0.14216157]
[1741235991759,96.32682442,148.85,148.84,27.23430717]
[1741235992267,96.32682442,148.85,148.84,0.14216157]
[1741235992452,99.68582442,148.85,148.84,312.14216157]
[1741235992864,99.68582442,148.85,148.82,27.0921456]
[1741235993174,99.68582442,148.85,148.81,3.8035]
[1741235993478,99.68582442,148.85,148.82,0.14216157]
[1741235993844,199.41979642,148.85,148.84,312.0]
[1741235994042,81.08432314,148.84,148.78,27.0921456]
[1741235994248,0.28432314,148.82,148.77,31.2149456]
[1741235994456,81.08432314,148.82,148.77,4.1228]
[1741235994870,0.28432314,148.8,148.77,4.1228]
[1741235995079,0.28432314,148.8,148.73,237.34863054]
[1741235995247,0.28432314,148.8,148.74,0.14216157]
[1741235995448,3.3604,148.79,148.74,27.0921456]
[1741235995666,80.8,148.81,148.76,27.0921456]
[1741235995849,3.3602,148.8,148.77,0.14216157]
[1741235996261,3.3602,148.8,148.76,0.14216157]
[1741235996779,3.3599,148.81,148.76,0.14216157]
[1741235997982,3.3599,148.81,148.76,312.14216157]
[1741235998763,4.96159744,148.8,148.76,312.14216157]
[1741235999956,0.28432314,148.8,148.76,312.14216157]
[1741236000168,0.28432314,148.81,148.76,312.14216157]
[1741236000655,3.3597,148.82,148.78,0.14216157]
[1741236001257,4.96058253,148.81,148.77,0.14216157]
[1741236001776,4.96058253,148.81,148.75,0.17216157]
[1741236002088,4.96058253,148.81,148.77,0.14216157]
[1741236002584,80.8,148.84,148.8,27.23430717]
[1741236002766,100.39092442,148.85,148.8,27.23430717]
[1741236003509,96.35982442,148.85,148.8,27.23430717]
[1741236003713,96.35982442,148.85,148.81,312.0]
[1741236004176,96.35982442,148.85,148.8,33.95460717]
[1741236004380,96.35982442,148.85,148.82,27.0921456]
[1741236004579,96.35982442,148.85,148.83,0.14216157]
[1741236005093,96.35982442,148.85,148.83,27.23430717]
[1741236006080,78.17393348,148.85,148.83,27.23430717]
[1741236006995,78.17393348,148.85,148.83,33.95320717]
[1741236007218,78.17393348,148.85,148.84,339.37646874]
[1741236007389,68.99093348,148.85,148.84,574.11044074]
[1741236007994,46.29279344,148.85,148.84,574.11044074]
[1741236008573,46.29279344,148.85,148.84,580.82904074]
[1741236008772,46.29279344,148.85,148.84,586.25608208]
[1741236009987,0.033,148.85,148.84,865.0718026]
[1741236011293,0.033,148.85,148.84,884.0057746]
[1741236012000,71.55385568,148.95,148.85,0.14216157]
[1741236012182,71.55385568,148.95,148.9,0.14216157]
[1741236012585,38.82472613,148.95,148.9,0.14216157]
[1741236012985,16.73372314,148.94,148.88,0.14216157]
[1741236013186,21.56575071,148.94,148.91,13.78076062]
[1741236013399,3.70700037,148.95,148.91,13.78076062]
[1741236014106,3.70700037,148.95,148.92,32.15510812]
[1741236014400,16.4494,148.94,148.92,32.15510812]
[1741236014602,99.44964886,148.93,148.92,8.12e-06]
[1741236015385,99.733972,148.93,148.92,8.12e-06]
[1741236015603,31.99313357,148.93,148.88,40.95686477]
[1741236015818,0.14216157,148.91,148.88,40.95686477]
[1741236015996,19.07613357,148.89,148.88,40.95686477]
[1741236017316,18.933972,148.89,148.88,40.95686477]
[1741236017487,18.933972,148.89,148.84,0.14216157]
[1741236017810,99.733972,148.89,148.84,0.14216157]
[1741236018499,99.733972,148.89,148.83,10.44657231]
[1741236018500,0.14216157,148.86,148.83,10.44657231]
[1741236018680,23.636972,148.84,148.83,10.44657231]
[1741236019286,4.703,148.84,148.83,10.44657231]
[1741236020212,80.8,148.9,148.84,0.14216157]
[1741236020384,97.53982314,148.89,148.84,0.14216157]
[1741236020585,18.64964886,148.88,148.84,0.14216157]
[1741236020916,4.702,148.87,148.81,0.14216157]
[1741236021713,3.3586,148.87,148.81,0.14216157]
[1741236023004,22.00804886,148.88,148.81,0.14216157]
[1741236023198,30.40404886,148.88,148.81,0.14216157]
[1741236023402,0.28432314,148.87,148.81,0.14216157]
[1741236023704,0.28432314,148.87,148.81,312.14216157]
[1741236024100,3.3579,148.9,148.83,0.14216157]
[1741236024291,3.3579,148.9,148.86,0.14216157]
[1741236024892,3.3575,148.92,148.86,0.14216157]
[1741236026604,3.3575,148.92,148.86,6.85966157]
[1741236026790,3.3903,148.93,148.89,0.14216157]
[1741236026994,0.033,148.93,148.89,0.14216157]
[1741236027206,0.033,148.93,148.89,312.14216157]
[1741236027400,0.033,148.93,148.91,0.14216157]
[1741236027704,0.033,148.93,148.92,0.14216157]
[1741236028498,0.033,148.93,148.92,27.23430717]
[1741236029083,0.033,148.93,148.92,33.94930717]
[1741236029287,0.033,148.93,148.92,27.23430717]
[1741236029805,0.033,148.93,148.92,33.94930717]
[1741236030793,0.033,148.93,148.92,339.23430717]
[1741236030998,0.033,148.93,148.92,312.14216157]
[1741236032612,0.033,148.93,148.92,345.94930717]
[1741236033008,0.033,148.93,148.92,339.23430717]
[1741236033516,0.033,148.93,148.92,33.94930717]
[1741236033685,0.033,148.93,148.91,81.3]
[1741236033686,0.033,148.93,148.88,6.7165]
[1741236034014,0.033,148.93,148.87,81.3]
[1741236034699,0.033,148.93,148.88,0.14216157]
[1741236034905,0.04000003,148.9,148.88,0.14216157]
[1741236036188,0.04000003,148.9,148.88,33.95100717]
[1741236036402,0.04000003,148.9,148.89,27.23430717]
[1741236036800,0.04000003,148.9,148.89,108.53430717]
[1741236036988,0.04000003,148.9,148.89,115.25060717]
[1741236037811,3e-08,148.9,148.89,268.82674074]
[1741236040400,3.70700037,148.95,148.94,27.23430717]
[1741236040706,3.70700037,148.95,148.94,420.53430717]
[1741236041095,3.70700037,148.95,148.94,393.44216157]
[1741236041491,3.70700037,148.95,148.94,400.15626157]
[1741236041690,3.70700037,148.95,148.94,427.24840717]
[1741236045894,3.7e-07,148.95,148.94,567.54636874]
[1741236046219,3.7e-07,148.95,148.94,567.83069188]
[1741236046516,3.7e-07,148.95,148.94,586.48034074]
[1741236046717,0.03,149.06,148.96,0.42648471]
[1741236047013,0.03,149.06,149.05,0.14216157]
[1741236047206,0.03,149.06,149.05,6.85126157]
[1741236048430,0.03,149.06,149.05,0.14216157]
[1741236048821,0.03,149.06,149.05,33.94340717]
[1741236049026,0.03,149.06,149.05,0.14216157]
[1741236049208,0.03,149.06,149.05,81.44216157]
[1741236049416,0.03,149.06,149.05,115.24340717]
[1741236049827,0.03,149.06,149.05,427.24340717]
[1741236052319,0.03,149.06,149.05,420.53430717]
[1741236052516,0.03,149.06,149.05,81.3]
[1741236052700,0.03,149.06,149.05,115.1012456]
[1741236052898,0.03,149.06,149.05,115.24340717]
[1741236053312,0.03,149.06,149.05,108.53430717]
[1741236053621,0.03,149.06,149.05,115.66989188]
[1741236053819,0.03,149.06,149.05,268.81954074]
[1741236054025,0.0001,149.06,149.05,268.81954074]
[1741236055522,0.03,149.07,149.06,19.21829514]
[1741236055707,0.033,149.08,149.06,270.22707]
[1741236056020,0.033,149.08,149.07,46.31044074]
[1741236056610,0.033,149.08,149.07,262.11044074]
[1741236057122,39.42419389,149.18,149.08,19.21829514]
[1741236057328,39.42419389,149.18,149.14,0.14216157]
[1741236057329,8.82970884,149.18,149.14,0.14216157]
[1741236057621,42.77579389,149.18,149.14,0.14216157]
[1741236058008,42.77579389,149.18,149.12,0.14216157]
[1741236058009,0.28432314,149.17,149.12,0.14216157]
[1741236058322,18.933972,149.15,149.07,27.0921456]
[1741236058527,10.7993,149.14,149.06,81.3]
[1741236058720,10.7993,149.14,149.07,0.14216157]
[1741236059021,10.7993,149.14,149.07,312.14216157]
[1741236059218,10.7993,149.14,149.07,312.0]
[1741236059421,10.7993,149.14,149.08,0.14216157]
[1741236060209,3.3527,149.13,149.08,0.14216157]
[1741236061021,11.7346,149.13,149.08,0.14216157]
[1741236061224,18.933972,149.11,149.04,81.3]
[1741236061421,18.933972,149.11,149.01,215.8]
[1741236061613,18.933972,149.11,149.03,0.14216157]
[1741236061931,18.933972,149.11,149.03,27.23430717]
[1741236062114,88.9007,149.12,149.07,27.23430717]
[1741236062423,8.1007,149.12,149.07,0.14216157]
[1741236062621,5.4182,149.12,149.09,0.14216157]
[1741236063009,2.6822,149.13,149.09,0.14216157]
[1741236063210,13.5113,149.14,149.1,0.14216157]
[1741236063712,0.03,149.14,149.12,0.14216157]
[1741236063923,2.712,149.14,149.11,0.14216157]
[1741236064227,0.03,149.14,149.13,0.14216157]
[1741236064429,0.03,149.14,149.07,0.14216157]
[1741236064726,0.03,149.14,149.08,27.0921456]
[1741236064911,0.03,149.14,149.1,0.14216157]
[1741236065229,0.03,149.14,149.1,108.53430717]
[1741236065732,0.03,149.14,149.1,81.44216157]
[1741236066527,0.03,149.14,149.1,108.53430717]
[1741236066731,0.03,149.14,149.13,27.23430717]
[1741236067027,0.03,149.14,149.13,243.17646874]
[1741236067407,0.03,149.14,149.13,555.17646874]
[1741236067713,0.03,149.14,149.13,527.94216157]
[1741236068118,0.03,149.14,149.13,312.14216157]
[1741236068322,0.03,149.14,149.13,0.14216157]
[1741236068510,0.03,149.14,149.1,81.3]
[1741236068725,0.03,149.14,149.11,0.14216157]
[1741236069119,0.03,149.14,149.1,81.3]
[1741236069319,0.03,149.14,149.11,27.0921456]
[1741236069513,0.03,149.14,149.12,0.14216157]
[1741236070412,0.03,149.14,149.11,27.23430717]
[1741236070621,0.03,149.14,149.11,108.53430717]
[1741236070812,0.03,149.14,149.13,0.14216157]
[1741236071209,0.03,149.14,149.13,312.14216157]
[1741236072331,0.03,149.14,149.12,0.14216157]
[1741236072923,0.42648471,149.06,148.94,0.033]
[1741236073324,6.37838471,149.04,148.94,0.033]
[1741236073524,0.14216157,149.01,148.94,0.033]
[1741236073933,18.933972,149.0,148.94,0.033]
[1741236074425,18.933972,148.98,148.94,0.033]
[1741236075257,18.933972,148.98,148.94,312.033]
[1741236076419,10.04180504,149.02,148.95,0.14216157]
[1741236076420,0.28432314,149.0,148.95,0.14216157]
[1741236077532,0.28432314,149.0,148.94,312.033]
[1741236077533,0.14216157,149.0,148.94,312.033]
[1741236077742,18.933972,148.98,148.94,312.033]
[1741236077919,99.733972,148.98,148.94,312.033]
[1741236078514,2.6851,148.97,148.94,0.033]
[1741236079535,83.4849,148.98,148.94,0.033]
[1741236079842,80.8,148.98,148.94,0.033]
[1741236080139,83.4849,148.98,148.94,0.033]
[1741236081010,80.8,148.98,148.94,0.033]
[1741236081539,80.8,148.98,148.95,0.14216157]
[1741236082039,80.8,148.98,148.94,0.033]
[1741236082253,83.4849,148.98,148.94,0.033]
[1741236082543,18.933972,148.97,148.94,0.033]
[1741236084840,14.0599,148.99,148.94,27.1251456]
[1741236085040,14.0599,148.99,148.97,0.14216157]
[1741236085221,2.6847,148.99,148.97,0.14216157]
[1741236085931,21.618272,149.01,148.97,0.14216157]
[1741236086124,0.14216157,149.0,148.96,312.0]
[1741236086324,0.14216157,149.0,148.94,0.033]
[1741236086534,18.933972,148.98,148.94,0.033]
[1741236087638,80.8,148.99,148.94,0.033]
[1741236088141,2.6849,148.98,148.94,0.033]
[1741236088340,2.6843,149.01,148.95,27.23430717]
[1741236088548,2.6843,149.01,148.96,0.14216157]
[1741236089251,2.6843,149.01,148.91,141.2154]
[1741236089252,0.14216157,148.94,148.84,312.0]
[1741236089546,0.28432314,148.93,148.84,339.0921456]
[1741236089850,0.14216157,148.94,148.86,27.23430717]
[1741236090029,2.6856,148.94,148.89,27.23430717]
[1741236090229,2.6856,148.94,148.9,27.0921456]
[1741236090434,2.6856,148.94,148.89,0.14216157]
[1741236090631,2.6856,148.94,148.88,0.17216157]
[1741236091041,2.6856,148.94,148.88,27.26430717]
[1741236091527,9.3997,148.94,148.88,0.03]
[1741236091728,18.933972,148.93,148.88,0.03]
[1741236092132,9.401,148.92,148.88,0.03]
[1741236092641,2.686,148.92,148.88,0.03]
[1741236092827,2.686,148.92,148.88,312.03]
[1741236094231,21.619572,148.94,148.88,312.03]
[1741236094433,2.6856,148.94,148.89,0.14216157]
[1741236095634,9.3997,148.94,148.89,0.14216157]
[1741236096149,18.933972,148.93,148.89,0.14216157]
[1741236096347,9.401,148.92,148.88,312.03]
[1741236096728,18.933972,148.91,148.88,0.03]
[1741236096934,18.933972,148.91,148.87,81.3]
[1741236097129,22.831,148.92,148.88,0.14216157]
[1741236097341,22.831,148.92,148.84,27.23430717]
[1741236097538,22.831,148.92,148.84,108.53430717]
[1741236098456,22.831,148.92,148.84,108.56730717]
[1741236099045,9.401,148.92,148.84,108.56730717]
[1741236099856,9.401,148.92,148.87,0.14216157]
[1741236100634,9.401,148.92,148.86,0.14216157]
[1741236101456,9.401,148.92,148.86,27.0921456]
[1741236101749,9.401,148.92,148.87,0.14216157]
[1741236102353,2.686,148.92,148.89,0.14216157]
[1741236102557,2.686,148.92,148.9,0.14216157]
[1741236102731,0.03,148.94,148.9,0.14216157]
[1741236103343,0.03,148.94,148.9,312.14216157]
[1741236105058,0.03,148.94,148.9,339.23430717]
[1741236105244,0.03,148.94,148.92,0.14216157]
[1741236105951,0.03,148.94,148.9,27.23430717]
[1741236106249,0.03,148.94,148.9,0.14216157]
[1741236106635,0.03,148.94,148.89,81.3]
[1741236106942,0.03,148.94,148.9,0.14216157]
[1741236108349,0.03,148.94,148.92,0.14216157]
[1741236109058,0.03,148.94,148.9,0.14216157]
[1741236111673,0.03,148.94,148.93,0.14216157]
[1741236111969,0.03,148.94,148.93,81.44216157]
[1741236112151,0.03,148.94,148.93,108.53430717]
[1741236112951,0.03,148.94,148.93,108.67646874]
[1741236113155,0.03,148.94,148.93,243.17646874]
[1741236115167,0.03,148.94,148.93,555.17646874]
[1741236116570,0.03,148.94,148.93,545.05433533]
[1741236119069,0.03,148.94,148.93,570.70280733]
[1741236120462,0.03,148.94,148.93,572.70280733]
[1741236120770,5.7118,149.07,148.99,0.28432314]
[1741236120977,2.6834,149.06,149.01,0.14216157]
[1741236122169,9.3921,149.06,149.0,0.14216157]
[1741236122570,18.933972,149.05,148.97,81.3]
[1741236122767,18.933972,149.03,148.97,81.3]
[1741236122981,18.933972,149.03,148.96,16.97001219]
[1741236122982,18.933972,149.03,148.95,81.3]
[1741236123278,18.933972,149.03,148.96,0.14216157]
[1741236123981,18.933972,149.03,148.96,312.14216157]
[1741236124562,90.1934,149.04,148.96,329.11217376]
[1741236125579,90.1934,149.04,148.96,17.11217376]
[1741236125778,90.1934,149.04,148.96,0.14216157]
[1741236126377,90.1934,149.04,148.96,17.11217376]
[1741236126570,9.3934,149.04,148.98,0.14216157]
[1741236127483,6.7096,149.04,148.98,0.14216157]
[1741236127975,2.6836,149.05,148.99,0.14216157]
[1741236128285,2.6836,149.05,149.01,0.14216157]
[1741236128664,2.6836,149.05,149.01,312.14216157]
[1741236129380,2.6834,149.06,149.03,0.14216157]
[1741236129566,2.6833,149.07,149.04,17.11217376]
[1741236129882,0.03,149.09,149.06,17.11217376]
[1741236130295,2.7129,149.09,149.06,17.11217376]
[1741236131070,0.03,149.09,149.08,17.11217376]
[1741236131273,0.03,149.09,149.08,98.41217376]
[1741236132188,0.03,149.09,149.08,81.44216157]
[1741236132589,0.03,149.09,149.08,312.14216157]
[1741236132788,0.03,149.09,149.05,81.3]
[1741236133092,0.03,149.09,149.06,0.14216157]
[1741236133288,0.03,149.09,149.05,81.3]
[1741236133587,0.03,149.09,149.06,0.14216157]
[1741236134671,0.03,149.09,149.06,27.24703199]
[1741236134868,0.03,149.09,149.06,0.14216157]
[1741236135480,0.03,149.09,149.08,0.14216157]
[1741236135786,0.03,149.09,149.08,312.14216157]
[1741236136383,0.03,149.09,149.08,0.14216157]
[1741236136770,0.03,149.09,149.07,81.3]
[1741236136974,0.03,149.09,149.03,0.14216157]
[1741236137181,0.03,149.09,149.03,42.79486157]
[1741236138183,0.03,149.09,149.07,0.14216157]
[1741236139305,0.03,149.09,149.07,312.14216157]
[1741236142186,0.03,149.09,149.04,0.14216157]
[1741236142380,0.14216157,149.0,148.88,0.033]
[1741236142579,0.28432314,148.98,148.89,27.10487042]
[1741236143096,18.933972,148.98,148.9,0.14216157]
[1741236143400,24.44807393,148.98,148.88,0.033]
[1741236143599,18.933972,148.98,148.88,27.13787042]
[1741236143896,18.933972,148.98,148.89,0.14216157]
[1741236144083,18.933972,148.98,148.89,27.24703199]
[1741236144283,18.933972,148.98,148.88,27.13787042]
[1741236144486,18.933972,148.98,148.89,27.10487042]
[1741236144688,21.618972,148.98,148.9,0.14216157]
[1741236144996,87.66480821,148.97,148.9,0.14216157]
[1741236145183,87.66480821,148.97,148.9,312.0]
[1741236145992,87.66480821,148.97,148.91,0.14216157]
[1741236147092,2.6852,148.96,148.9,312.0]
[1741236147603,83.4852,148.96,148.9,312.0]
[1741236147778,83.4852,148.96,148.91,0.14216157]
[1741236148391,80.8,148.96,148.91,0.14216157]
[1741236148780,2.6854,148.95,148.89,0.14216157]
[1741236149180,83.4852,148.96,148.89,42.79486157]
[1741236149583,80.8,148.96,148.89,69.89973199]
[1741236149983,80.8,148.96,148.89,42.79486157]
[1741236149984,83.4852,148.96,148.89,42.79486157]
[1741236150598,80.8,148.96,148.89,42.79486157]
[1741236150781,80.8,148.96,148.89,69.89973199]
[1741236150981,83.4853,148.96,148.89,69.89973199]
[1741236151900,83.4853,148.96,148.94,0.14216157]
[1741236152601,80.8,148.96,148.94,0.14216157]
[1741236154412,83.4853,148.96,148.94,0.14216157]
[1741236154895,80.8,148.96,148.94,0.14216157]
[1741236155096,90.34990821,148.97,148.94,0.14216157]
[1741236157502,87.66480821,148.97,148.94,0.14216157]
[1741236158086,87.66480821,148.97,148.93,0.033]
[1741236158687,87.66480821,148.97,148.93,6.7475]
[1741236158895,87.66480821,148.97,148.94,0.14216157]
[1741236159211,83.4846,149.0,148.94,0.14216157]
[1741236159798,83.4846,149.0,148.94,6.85616157]
[1741236159983,80.8,149.0,148.94,23.83406137]
[1741236160498,87.66480821,148.99,148.94,23.83406137]
[1741236160703,87.66480821,148.99,148.94,66.48676137]
[1741236160885,87.66480821,148.99,148.96,17.12006137]
[1741236161090,87.66480821,148.99,148.98,0.14216157]
[1741236161812,87.66480821,148.99,148.98,6.85446157]
[1741236162008,87.66480821,148.99,148.98,0.14216157]
[1741236164508,87.66480821,148.99,148.98,23.83236137]
[1741236164715,87.66480821,148.99,148.98,335.83236137]
[1741236165091,87.66480821,148.99,148.98,201.12722294]
[1741236165295,87.66480821,148.99,148.88,0.033]
[1741236165296,94.36676157,148.98,148.88,0.033]
[1741236165493,9.3972,148.98,148.89,16.9778998]
[1741236165810,2.6849,148.98,148.9,16.9778998]
[1741236166207,2.6849,148.98,148.91,17.12006137]
[1741236166394,107.52880821,148.99,148.91,17.12006137]
[1741236166596,104.84410821,148.99,148.93,0.14216157]
[1741236166797,87.66480821,148.99,148.93,17.12006137]
[1741236167113,87.66480821,148.99,148.95,0.14216157]
[1741236168031,87.66480821,148.99,148.93,17.12006137]
[1741236168201,87.66480821,148.99,148.96,0.14216157]
[1741236168706,87.66480821,148.99,148.95,0.14216157]
[1741236169119,87.66480821,148.99,148.94,0.14216157]
[1741236169305,87.66480821,148.99,148.94,17.12006137]
[1741236170034,87.66480821,148.99,148.94,0.14216157]
[1741236170712,87.66480821,148.99,148.94,49.50896157]
[1741236171021,87.66480821,148.99,148.94,42.79486157]
[1741236171732,87.66480821,148.99,148.97,0.14216157]
[1741236174336,87.69480821,148.99,148.97,0.14216157]
[1741236174902,87.69480821,148.99,148.97,17.12006137]
[1741236175400,0.03,148.99,148.97,17.12006137]
[1741236176517,87.66480821,148.98,148.97,0.14216157]
[1741236176708,87.66480821,148.98,148.97,17.12006137]
[1741236177726,87.66480821,148.98,148.97,312.14216157]
[1741236177929,87.66480821,148.98,148.97,0.14216157]
[1741236180020,81.08432314,148.97,148.93,0.033]
[1741236181607,2.6852,148.96,148.93,0.033]
[1741236183616,2.6851,148.97,148.93,0.033]
[1741236184105,90.34970821,148.98,148.94,0.14216157]
[1741236184313,87.66480821,148.98,148.96,0.14216157]
[1741236184529,87.66480821,148.98,148.97,17.12006137]
[1741236184815,87.66480821,148.98,148.97,329.12006137]
[1741236185214,87.66480821,148.98,148.97,312.14216157]
[1741236186029,87.66480821,148.98,148.97,329.12006137]
[1741236186431,87.66480821,148.98,148.97,312.14216157]
[1741236186937,87.69480821,148.98,148.97,312.14216157]
[1741236187940,0.03,149.07,149.01,0.56864628]
[1741236188234,0.03,149.07,149.06,0.14216157]
[1741236188424,0.03,149.07,149.06,42.79486157]
[1741236188609,0.03,149.07,149.06,213.34889494]
[1741236188810,0.03,149.07,149.06,226.37319494]
[1741236189137,10.48824344,149.12,149.11,21.07613357]
[1741236189312,16.65510965,149.13,149.12,21.07613357]
[1741236189518,0.03,149.14,149.13,21.21829514]
[1741236189712,0.03,149.14,149.13,232.32679474]
[1741236189934,62.92946065,149.17,149.15,22.14216157]
[1741236190113,27.37497376,149.16,149.15,216.69924608]
[1741236190308,0.03,149.21,149.17,2.56864628]
[1741236190513,0.03,149.21,149.2,22.14216157]
[1741236190727,0.03,149.21,149.2,56.26963325]
[1741236190927,83.90594753,149.27,149.21,2.42648471]
[1741236191229,19.57,149.23,149.22,41.21829514]
[1741236191419,15.67771511,149.23,149.22,227.76891536]
[1741236191619,18.933972,149.35,149.24,0.14216157]
[1741236191831,2.6785,149.34,149.29,27.16747168]